[Event "Late-Titled-Tuesday-Blitz-May-28-2024"]
[Site "Chess.com"]
[Date "2024.05.28"]
[Round "9"]
[White "SRob2003"]
[Black "Vladimir_Zakhartsov"]
[Result "0-1"]
[WhiteElo "2692"]
[BlackElo "2876"]
[TimeControl "180+1"]
[EndTime "15:44:22 PDT"]
[Termination "Vladimir_Zakhartsov won by resignation"]

1. c4 {[%clk 0:03:00.9]} 1... e6 {[%clk 0:02:59.6]} 2. g3 {[%clk 0:03:00.7]}
2... d5 {[%clk 0:02:59.8]} 3. Bg2 {[%clk 0:03:01.3]} 3... Nf6 {[%clk 0:03:00.1]}
4. Nf3 {[%clk 0:03:01.9]} 4... dxc4 {[%clk 0:02:58.7]} 5. Qa4+ {[%clk
0:03:01.8]} 5... Nbd7 {[%clk 0:02:58.6]} 6. Qxc4 {[%clk 0:03:00.8]} 6... a6
{[%clk 0:02:59.1]} 7. Qc2 {[%clk 0:02:58.8]} 7... c5 {[%clk 0:02:43.2]} 8. a4
{[%clk 0:02:58.8]} 8... Be7 {[%clk 0:02:40.6]} 9. a5 {[%clk 0:02:58.7]} 9... O-O
{[%clk 0:02:40.8]} 10. O-O {[%clk 0:02:57.8]} 10... Rb8 {[%clk 0:02:40]} 11. Nc3
{[%clk 0:02:56.8]} 11... b5 {[%clk 0:02:38.5]} 12. axb6 {[%clk 0:02:57.1]} 12...
Nxb6 {[%clk 0:02:38.3]} 13. d3 {[%clk 0:02:56.3]} 13... Nfd5 {[%clk 0:02:37.1]}
14. Ne5 {[%clk 0:02:49.5]} 14... Nb4 {[%clk 0:02:36.5]} 15. Qb3 {[%clk
0:02:31.8]} 15... Qc7 {[%clk 0:02:34.8]} 16. Nc4 {[%clk 0:02:24.9]} 16... N6d5
{[%clk 0:02:30.4]} 17. Qd1 {[%clk 0:02:19.4]} 17... Qd8 {[%clk 0:01:56.5]} 18.
Bd2 {[%clk 0:02:18.5]} 18... Bb7 {[%clk 0:01:55.6]} 19. Na4 {[%clk 0:01:54.8]}
19... Bc6 {[%clk 0:01:49.6]} 20. Qb1 {[%clk 0:01:44.6]} 20... Bb5 {[%clk
0:01:47.5]} 21. Rc1 {[%clk 0:01:43.7]} 21... Rc8 {[%clk 0:01:41.8]} 22. Nc3
{[%clk 0:01:30.3]} 22... Bc6 {[%clk 0:01:28]} 23. Ne4 {[%clk 0:01:30.2]} 23...
h6 {[%clk 0:01:23.5]} 24. Nc3 {[%clk 0:01:23.4]} 24... Bb7 {[%clk 0:01:20.3]}
25. Na5 {[%clk 0:01:16.9]} 25... Ba8 {[%clk 0:01:20.5]} 26. Nxd5 {[%clk
0:01:08.8]} 26... exd5 {[%clk 0:01:16.6]} 27. Bxb4 {[%clk 0:01:08.7]} 27... cxb4
{[%clk 0:01:17.5]} 28. Nb3 {[%clk 0:01:08.1]} 28... Qb6 {[%clk 0:01:15.7]} 29.
Rc2 {[%clk 0:01:03.7]} 29... Bb7 {[%clk 0:01:08.9]} 30. Qd1 {[%clk 0:01:03.1]}
30... Rxc2 {[%clk 0:01:07.3]} 31. Qxc2 {[%clk 0:01:04]} 31... Rc8 {[%clk
0:01:07.7]} 32. Qd2 {[%clk 0:01:04.5]} 32... Bg5 {[%clk 0:01:00.9]} 33. e3
{[%clk 0:01:00.9]} 33... d4 {[%clk 0:00:57.8]} 34. Re1 {[%clk 0:00:42.8]} 34...
dxe3 {[%clk 0:00:49.1]} 35. fxe3 {[%clk 0:00:43.7]} 35... Bxg2 {[%clk
0:00:47.9]} 36. Kxg2 {[%clk 0:00:43.5]} 36... a5 {[%clk 0:00:48.1]} 37. d4
{[%clk 0:00:41.7]} 37... Qc6+ {[%clk 0:00:40.2]} 38. Kg1 {[%clk 0:00:39.7]}
38... Qd5 {[%clk 0:00:40.8]} 39. Qd3 {[%clk 0:00:37.9]} 39... a4 {[%clk
0:00:40]} 40. Nd2 {[%clk 0:00:35.4]} 40... a3 {[%clk 0:00:36.2]} 41. bxa3 {[%clk
0:00:29]} 41... Rc3 {[%clk 0:00:35.8]} 42. Qe4 {[%clk 0:00:29.5]} 42... Qxe4
{[%clk 0:00:29.6]} 43. Nxe4 {[%clk 0:00:30.4]} 43... Rxe3 {[%clk 0:00:28.8]} 44.
Kf1 {[%clk 0:00:16.1]} 44... Rxe1+ {[%clk 0:00:27.9]} 45. Kxe1 {[%clk 0:00:17]}
45... bxa3 {[%clk 0:00:28.6]} 46. Nc3 {[%clk 0:00:14.8]} 46... Bf6 {[%clk
0:00:28.6]} 0-1

[Event "Late-Titled-Tuesday-Blitz-May-28-2024"]
[Site "Chess.com"]
[Date "2024.05.28"]
[Round "9"]
[White "ExchangeAB"]
[Black "Cuchulin"]
[Result "0-1"]
[WhiteElo "2472"]
[BlackElo "2264"]
[TimeControl "180+1"]
[EndTime "15:44:24 PDT"]
[Termination "Cuchulin won by resignation"]

1. d4 {[%clk 0:03:00.9]} 1... d5 {[%clk 0:02:59.3]} 2. Nf3 {[%clk 0:03:01.2]}
2... Nf6 {[%clk 0:02:58.3]} 3. Bf4 {[%clk 0:03:01.2]} 3... e6 {[%clk 0:02:58.2]}
4. e3 {[%clk 0:03:01.4]} 4... Bd6 {[%clk 0:02:57.7]} 5. Bd3 {[%clk 0:03:00]}
5... Bxf4 {[%clk 0:02:57.3]} 6. exf4 {[%clk 0:02:59.5]} 6... O-O {[%clk
0:02:57.9]} 7. O-O {[%clk 0:02:58.4]} 7... Nbd7 {[%clk 0:02:56.6]} 8. c3 {[%clk
0:02:57.1]} 8... c5 {[%clk 0:02:56.8]} 9. dxc5 {[%clk 0:02:56.8]} 9... Nxc5
{[%clk 0:02:56.5]} 10. Bc2 {[%clk 0:02:57.1]} 10... Qb6 {[%clk 0:02:55.4]} 11.
Qc1 {[%clk 0:02:49.4]} 11... Bd7 {[%clk 0:02:48.9]} 12. Nbd2 {[%clk 0:02:48.9]}
12... Na4 {[%clk 0:02:43.6]} 13. Nb3 {[%clk 0:02:41.4]} 13... Bc6 {[%clk
0:02:36.5]} 14. Ne5 {[%clk 0:02:35.6]} 14... Nc5 {[%clk 0:02:32.6]} 15. Nxc5
{[%clk 0:02:34.9]} 15... Qxc5 {[%clk 0:02:32.1]} 16. Qd2 {[%clk 0:02:22.2]}
16... Rfd8 {[%clk 0:02:23.6]} 17. Qd4 {[%clk 0:02:18]} 17... Qd6 {[%clk
0:02:12.8]} 18. Rfe1 {[%clk 0:02:11.4]} 18... b5 {[%clk 0:02:00.8]} 19. Rad1
{[%clk 0:02:02.5]} 19... a5 {[%clk 0:01:56.8]} 20. Qb6 {[%clk 0:01:47.1]} 20...
Rdc8 {[%clk 0:01:43.8]} 21. h3 {[%clk 0:01:35.3]} 21... Qc7 {[%clk 0:01:35.8]}
22. Qe3 {[%clk 0:01:30.1]} 22... b4 {[%clk 0:01:32.2]} 23. Bb1 {[%clk
0:01:06.1]} 23... bxc3 {[%clk 0:01:25.1]} 24. Qxc3 {[%clk 0:01:02.5]} 24... Ba4
{[%clk 0:01:24.8]} 25. Qxc7 {[%clk 0:00:59.3]} 25... Rxc7 {[%clk 0:01:25.7]} 26.
Rc1 {[%clk 0:00:55.3]} 26... Rac8 {[%clk 0:01:23.9]} 27. Rxc7 {[%clk 0:00:54.4]}
27... Rxc7 {[%clk 0:01:24.8]} 28. f3 {[%clk 0:00:53.5]} 28... g6 {[%clk
0:01:21.4]} 29. Kf2 {[%clk 0:00:53]} 29... Bb5 {[%clk 0:01:14.8]} 30. Ke3 {[%clk
0:00:50.8]} 30... Ne8 {[%clk 0:01:09.5]} 31. Kd2 {[%clk 0:00:47.2]} 31... Nd6
{[%clk 0:01:08.9]} 32. b3 {[%clk 0:00:45.1]} 32... Nf5 {[%clk 0:01:01.9]} 33.
Bxf5 {[%clk 0:00:41.2]} 33... gxf5 {[%clk 0:01:01.1]} 34. g4 {[%clk 0:00:33.7]}
34... fxg4 {[%clk 0:00:45]} 35. fxg4 {[%clk 0:00:29.5]} 35... f6 {[%clk
0:00:45.2]} 36. Nd3 {[%clk 0:00:29.2]} 36... Kf7 {[%clk 0:00:42.6]} 37. Rc1
{[%clk 0:00:23.8]} 37... Rxc1 {[%clk 0:00:40.1]} 38. Nxc1 {[%clk 0:00:24.7]}
38... e5 {[%clk 0:00:39.6]} 39. Ke3 {[%clk 0:00:19.9]} 39... Ke6 {[%clk
0:00:35.7]} 40. a4 {[%clk 0:00:19.1]} 40... d4+ {[%clk 0:00:35.1]} 41. Kf2
{[%clk 0:00:18.5]} 41... Ba6 {[%clk 0:00:31.5]} 42. Na2 {[%clk 0:00:18.7]} 42...
e4 {[%clk 0:00:29.9]} 43. b4 {[%clk 0:00:18.1]} 43... Bc4 {[%clk 0:00:25]} 44.
Nc1 {[%clk 0:00:16.3]} 44... axb4 {[%clk 0:00:24.6]} 45. a5 {[%clk 0:00:17]}
45... b3 {[%clk 0:00:23.3]} 46. a6 {[%clk 0:00:17.5]} 46... b2 {[%clk
0:00:23.6]} 47. a7 {[%clk 0:00:17]} 47... Bd5 {[%clk 0:00:22.9]} 48. a8=Q {[%clk
0:00:17.7]} 48... Bxa8 {[%clk 0:00:22.5]} 0-1

[Event "Late-Titled-Tuesday-Blitz-May-28-2024"]
[Site "Chess.com"]
[Date "2024.05.28"]
[Round "9"]
[White "Roedor"]
[Black "VirtualCoach"]
[Result "1-0"]
[WhiteElo "2334"]
[BlackElo "2192"]
[TimeControl "180+1"]
[EndTime "15:44:28 PDT"]
[Termination "Roedor won by resignation"]

1. Nf3 {[%clk 0:03:00.9]} 1... c5 {[%clk 0:02:53.4]} 2. c4 {[%clk 0:02:59.1]}
2... Nc6 {[%clk 0:02:52.9]} 3. Nc3 {[%clk 0:02:44.5]} 3... Nf6 {[%clk
0:02:53.1]} 4. g3 {[%clk 0:02:43.4]} 4... d5 {[%clk 0:02:51.9]} 5. d4 {[%clk
0:02:32.8]} 5... cxd4 {[%clk 0:02:48.5]} 6. Nxd4 {[%clk 0:02:31]} 6... e5 {[%clk
0:02:45.7]} 7. Nxc6 {[%clk 0:02:29.9]} 7... bxc6 {[%clk 0:02:46.6]} 8. cxd5
{[%clk 0:02:30.4]} 8... cxd5 {[%clk 0:02:46.2]} 9. Bg2 {[%clk 0:02:30.9]} 9...
Be6 {[%clk 0:02:35]} 10. Bg5 {[%clk 0:02:28.9]} 10... e4 {[%clk 0:02:07]} 11.
O-O {[%clk 0:02:25.8]} 11... Be7 {[%clk 0:02:06.4]} 12. Nb5 {[%clk 0:02:20.9]}
12... O-O {[%clk 0:02:01.8]} 13. Nd4 {[%clk 0:02:18.7]} 13... Qd7 {[%clk
0:02:00.8]} 14. Rc1 {[%clk 0:02:17.6]} 14... Rac8 {[%clk 0:01:59.7]} 15. Qd2
{[%clk 0:02:14.2]} 15... h6 {[%clk 0:01:56.8]} 16. Bf4 {[%clk 0:02:11.4]} 16...
Nh5 {[%clk 0:01:47.4]} 17. Be3 {[%clk 0:02:10.8]} 17... Bh3 {[%clk 0:01:41.8]}
18. Rxc8 {[%clk 0:01:55]} 18... Rxc8 {[%clk 0:01:39.7]} 19. Rc1 {[%clk
0:01:54.9]} 19... Nf6 {[%clk 0:01:26.3]} 20. Rxc8+ {[%clk 0:01:32.1]} 20... Qxc8
{[%clk 0:01:23.8]} 21. Qc1 {[%clk 0:01:31.6]} 21... Qxc1+ {[%clk 0:01:18.5]} 22.
Bxc1 {[%clk 0:01:32.5]} 22... Bxg2 {[%clk 0:01:17]} 23. Kxg2 {[%clk 0:01:33.4]}
23... Bc5 {[%clk 0:01:15.6]} 24. Be3 {[%clk 0:01:26.8]} 24... Nd7 {[%clk
0:01:13.1]} 25. a3 {[%clk 0:01:21.8]} 25... Ne5 {[%clk 0:01:10.2]} 26. b4 {[%clk
0:01:16.4]} 26... Bb6 {[%clk 0:01:08.6]} 27. a4 {[%clk 0:01:15.6]} 27... a5
{[%clk 0:01:01.8]} 28. bxa5 {[%clk 0:01:07.7]} 28... Bxa5 {[%clk 0:01:00.8]} 29.
Nb3 {[%clk 0:01:06.8]} 29... Bc7 {[%clk 0:00:46.2]} 30. a5 {[%clk 0:01:06.8]}
30... Nc4 {[%clk 0:00:45.6]} 31. a6 {[%clk 0:01:03.3]} 31... Nxe3+ {[%clk
0:00:42.5]} 32. fxe3 {[%clk 0:01:04.2]} 32... Bb6 {[%clk 0:00:37]} 33. Na5
{[%clk 0:01:01.9]} 33... Bxe3 {[%clk 0:00:20.7]} 34. Nc6 {[%clk 0:01:01.3]}
34... Kf8 {[%clk 0:00:17]} 35. a7 {[%clk 0:00:55.4]} 35... Bxa7 {[%clk
0:00:17.3]} 36. Nxa7 {[%clk 0:00:56.3]} 36... Ke7 {[%clk 0:00:16.9]} 37. e3
{[%clk 0:00:55.1]} 37... Ke6 {[%clk 0:00:16.4]} 38. Nc6 {[%clk 0:00:54.9]} 38...
f5 {[%clk 0:00:16]} 39. Nd4+ {[%clk 0:00:55]} 39... Ke5 {[%clk 0:00:15.3]} 40.
Kh3 {[%clk 0:00:54.1]} 40... g5 {[%clk 0:00:15.5]} 41. Ne2 {[%clk 0:00:52.9]}
41... h5 {[%clk 0:00:13.2]} 42. Kg2 {[%clk 0:00:53]} 42... Ke6 {[%clk
0:00:10.3]} 43. h4 {[%clk 0:00:50]} 43... gxh4 {[%clk 0:00:05]} 44. gxh4 {[%clk
0:00:50.9]} 44... Ke5 {[%clk 0:00:04.8]} 45. Kg3 {[%clk 0:00:51]} 45... Ke6
{[%clk 0:00:03.8]} 46. Kf4 {[%clk 0:00:50.4]} 46... Kf6 {[%clk 0:00:02.4]} 47.
Nd4 {[%clk 0:00:50.6]} 47... Kg6 {[%clk 0:00:02.2]} 48. Nxf5 {[%clk 0:00:50.9]}
1-0

[Event "Late-Titled-Tuesday-Blitz-May-28-2024"]
[Site "Chess.com"]
[Date "2024.05.28"]
[Round "9"]
[White "yaguigor"]
[Black "HajiyevKanan"]
[Result "1-0"]
[WhiteElo "2593"]
[BlackElo "2472"]
[TimeControl "180+1"]
[EndTime "15:44:29 PDT"]
[Termination "yaguigor won by resignation"]

1. e4 {[%clk 0:03:00.9]} 1... c6 {[%clk 0:02:13.5]} 2. d4 {[%clk 0:02:59.5]}
2... a6 {[%clk 0:02:14.4]} 3. Nf3 {[%clk 0:02:55.8]} 3... d5 {[%clk 0:02:14.1]}
4. e5 {[%clk 0:02:55.6]} 4... Bg4 {[%clk 0:02:13.5]} 5. Bd3 {[%clk 0:02:50.9]}
5... e6 {[%clk 0:02:13.7]} 6. h3 {[%clk 0:02:50.1]} 6... Bh5 {[%clk 0:02:13.7]}
7. Nbd2 {[%clk 0:02:48.7]} 7... c5 {[%clk 0:02:14.2]} 8. c3 {[%clk 0:02:48.2]}
8... Nc6 {[%clk 0:02:14.4]} 9. Be2 {[%clk 0:02:39.2]} 9... Qb6 {[%clk
0:02:13.5]} 10. Nb3 {[%clk 0:02:38]} 10... cxd4 {[%clk 0:02:08.9]} 11. Nbxd4
{[%clk 0:02:31.4]} 11... Bc5 {[%clk 0:01:52.9]} 12. O-O {[%clk 0:02:14]} 12...
Bxd4 {[%clk 0:01:34.8]} 13. Nxd4 {[%clk 0:02:10.5]} 13... Bxe2 {[%clk
0:01:32.8]} 14. Qxe2 {[%clk 0:02:09.8]} 14... Nxd4 {[%clk 0:01:32.6]} 15. Qe3
{[%clk 0:02:05.3]} 15... Ne7 {[%clk 0:01:29]} 16. Qxd4 {[%clk 0:02:03.8]} 16...
Qxd4 {[%clk 0:01:28.6]} 17. cxd4 {[%clk 0:02:04.7]} 17... Rc8 {[%clk 0:01:26.3]}
18. Be3 {[%clk 0:02:02.9]} 18... Kd7 {[%clk 0:01:24.8]} 19. Rfc1 {[%clk
0:02:01.5]} 19... b5 {[%clk 0:01:21.9]} 20. Kf1 {[%clk 0:02:00.6]} 20... Rxc1+
{[%clk 0:01:21.4]} 21. Rxc1 {[%clk 0:01:59.7]} 21... Rc8 {[%clk 0:01:22.3]} 22.
Rxc8 {[%clk 0:01:58.4]} 22... Kxc8 {[%clk 0:01:21.3]} 23. g4 {[%clk 0:01:56.3]}
23... Nc6 {[%clk 0:01:17.5]} 24. Ke2 {[%clk 0:01:54.2]} 24... Na5 {[%clk
0:01:15]} 25. b3 {[%clk 0:01:53.2]} 25... Kd7 {[%clk 0:01:14.5]} 26. Kd3 {[%clk
0:01:51.7]} 26... Nc6 {[%clk 0:01:14.3]} 27. Bd2 {[%clk 0:01:51.5]} 27... a5
{[%clk 0:01:03.5]} 28. a4 {[%clk 0:01:46.4]} 28... b4 {[%clk 0:00:59]} 29. f4
{[%clk 0:01:44]} 29... g6 {[%clk 0:00:58]} 30. Be1 {[%clk 0:01:42.4]} 30... Ke8
{[%clk 0:00:49.3]} 31. Bh4 {[%clk 0:01:42.6]} 31... Kf8 {[%clk 0:00:49.1]} 32.
Bf6 {[%clk 0:01:42.4]} 32... h6 {[%clk 0:00:49.1]} 33. Ke3 {[%clk 0:01:40.2]}
33... Kg8 {[%clk 0:00:46.5]} 34. Kd3 {[%clk 0:01:39.4]} 34... Kh7 {[%clk
0:00:45.9]} 35. Ke3 {[%clk 0:01:35.2]} 35... h5 {[%clk 0:00:46.3]} 36. Kd3
{[%clk 0:01:21.6]} 36... Kh6 {[%clk 0:00:41.3]} 37. Ke3 {[%clk 0:01:19.6]} 37...
hxg4 {[%clk 0:00:41.7]} 38. hxg4 {[%clk 0:01:18.8]} 38... Kh7 {[%clk 0:00:42.1]}
39. Kd3 {[%clk 0:01:15.6]} 39... Kg8 {[%clk 0:00:39.8]} 40. Ke3 {[%clk
0:01:15.6]} 40... Kf8 {[%clk 0:00:39.5]} 41. Kd3 {[%clk 0:01:14.7]} 41... Ke8
{[%clk 0:00:40]} 42. Bh4 {[%clk 0:01:11.4]} 42... Nb8 {[%clk 0:00:40.1]} 43. Ke3
{[%clk 0:01:07.4]} 43... Nd7 {[%clk 0:00:40.6]} 44. Kd3 {[%clk 0:01:05.9]} 44...
Kf8 {[%clk 0:00:40.1]} 45. Bd8 {[%clk 0:01:03]} 45... g5 {[%clk 0:00:35.5]} 46.
fxg5 {[%clk 0:01:01.1]} 46... Kg7 {[%clk 0:00:29.2]} 47. Bxa5 {[%clk 0:01:00.8]}
47... Kg6 {[%clk 0:00:29.6]} 48. Bxb4 {[%clk 0:01:00.7]} 48... Kxg5 {[%clk
0:00:29.3]} 49. Bd6 {[%clk 0:00:57]} 49... Kxg4 {[%clk 0:00:26.2]} 50. a5 {[%clk
0:00:55.3]} 50... Kf5 {[%clk 0:00:24.1]} 51. b4 {[%clk 0:00:54.7]} 51... f6
{[%clk 0:00:24]} 52. exf6 {[%clk 0:00:54.2]} 52... Kxf6 {[%clk 0:00:23.6]} 53.
b5 {[%clk 0:00:53.5]} 53... e5 {[%clk 0:00:23.2]} 54. dxe5+ {[%clk 0:00:52.9]}
54... Ke6 {[%clk 0:00:23.9]} 55. a6 {[%clk 0:00:51.4]} 55... Nb6 {[%clk
0:00:22.3]} 56. Bc7 {[%clk 0:00:47.8]} 56... Na8 {[%clk 0:00:20.8]} 57. b6
{[%clk 0:00:47.2]} 1-0

[Event "Late-Titled-Tuesday-Blitz-May-28-2024"]
[Site "Chess.com"]
[Date "2024.05.28"]
[Round "9"]
[White "wonderfultime"]
[Black "Msb2"]
[Result "1-0"]
[WhiteElo "3045"]
[BlackElo "3039"]
[TimeControl "180+1"]
[EndTime "15:44:31 PDT"]
[Termination "wonderfultime won by resignation"]

1. d4 {[%clk 0:02:51]} 1... d5 {[%clk 0:03:00.1]} 2. Bf4 {[%clk 0:02:49.9]} 2...
c5 {[%clk 0:03:00.4]} 3. c3 {[%clk 0:02:49.4]} 3... Nc6 {[%clk 0:03:01]} 4. e3
{[%clk 0:02:49.6]} 4... e6 {[%clk 0:03:01.6]} 5. Nd2 {[%clk 0:02:49.3]} 5... Bd6
{[%clk 0:03:01.9]} 6. Bg3 {[%clk 0:02:48.1]} 6... Nge7 {[%clk 0:03:00.9]} 7.
Ngf3 {[%clk 0:02:47.5]} 7... cxd4 {[%clk 0:03:01.4]} 8. cxd4 {[%clk 0:02:46.9]}
8... O-O {[%clk 0:03:01.3]} 9. Bd3 {[%clk 0:02:46.8]} 9... Nf5 {[%clk
0:03:01.2]} 10. O-O {[%clk 0:02:42.9]} 10... Nxg3 {[%clk 0:03:00.2]} 11. hxg3
{[%clk 0:02:43.8]} 11... Bd7 {[%clk 0:02:58]} 12. Rc1 {[%clk 0:02:43.6]} 12...
Rc8 {[%clk 0:02:57.9]} 13. a3 {[%clk 0:02:44.2]} 13... g6 {[%clk 0:02:47.5]} 14.
Nb3 {[%clk 0:02:22.4]} 14... b6 {[%clk 0:02:45.2]} 15. Qd2 {[%clk 0:02:17]}
15... Qe7 {[%clk 0:02:43.1]} 16. e4 {[%clk 0:02:15.6]} 16... dxe4 {[%clk
0:02:39]} 17. Bxe4 {[%clk 0:02:16.5]} 17... Rc7 {[%clk 0:02:32.9]} 18. Rfe1
{[%clk 0:02:07.2]} 18... Qf6 {[%clk 0:02:26.2]} 19. Rc3 {[%clk 0:01:49.1]} 19...
Rfc8 {[%clk 0:02:25.1]} 20. Nh2 {[%clk 0:01:48.4]} 20... h5 {[%clk 0:02:21.7]}
21. Nf3 {[%clk 0:01:42.8]} 21... Ne7 {[%clk 0:02:13.8]} 22. Rxc7 {[%clk
0:01:31.5]} 22... Rxc7 {[%clk 0:02:14.7]} 23. Qe2 {[%clk 0:01:26.6]} 23... Bc6
{[%clk 0:01:57.6]} 24. Nbd2 {[%clk 0:01:26]} 24... Bd5 {[%clk 0:01:30.2]} 25.
Bxd5 {[%clk 0:01:19.7]} 25... Nxd5 {[%clk 0:01:30.3]} 26. Ne4 {[%clk 0:01:19.9]}
26... Qd8 {[%clk 0:01:31]} 27. Ne5 {[%clk 0:01:17.7]} 27... Nf6 {[%clk
0:01:05.8]} 28. Nc3 {[%clk 0:00:38.8]} 28... Bxa3 {[%clk 0:00:29.8]} 29. Nb5
{[%clk 0:00:33.7]} 29... Bb4 {[%clk 0:00:30.3]} 30. Ra1 {[%clk 0:00:25.8]} 30...
Rb7 {[%clk 0:00:22.1]} 31. Nc6 {[%clk 0:00:22.5]} 31... Qf8 {[%clk 0:00:21.9]}
32. Nbxa7 {[%clk 0:00:20.4]} 32... Nd5 {[%clk 0:00:19.3]} 33. Nb5 {[%clk
0:00:20.2]} 33... Be7 {[%clk 0:00:16.5]} 34. Ne5 {[%clk 0:00:17.2]} 34... Bf6
{[%clk 0:00:16.1]} 35. Qf3 {[%clk 0:00:15.9]} 35... Kg7 {[%clk 0:00:14.5]} 36.
Nc3 {[%clk 0:00:13.8]} 36... Qd8 {[%clk 0:00:13.1]} 37. Ne4 {[%clk 0:00:13.9]}
37... Bxe5 {[%clk 0:00:12.9]} 38. dxe5 {[%clk 0:00:14.8]} 38... Qb8 {[%clk
0:00:07.6]} 39. Nd6 {[%clk 0:00:15]} 39... Ra7 {[%clk 0:00:08.1]} 40. Rc1 {[%clk
0:00:13.6]} 40... Rc7 {[%clk 0:00:06.3]} 41. Rxc7 {[%clk 0:00:13.1]} 41... Qxc7
{[%clk 0:00:07.2]} 42. Ne8+ {[%clk 0:00:13.4]} 1-0

[Event "Late-Titled-Tuesday-Blitz-May-28-2024"]
[Site "Chess.com"]
[Date "2024.05.28"]
[Round "9"]
[White "yobdc"]
[Black "Hakiki_satranc"]
[Result "1-0"]
[WhiteElo "2544"]
[BlackElo "2415"]
[TimeControl "180+1"]
[EndTime "15:44:33 PDT"]
[Termination "yobdc won by checkmate"]

1. e4 {[%clk 0:02:57.7]} 1... e5 {[%clk 0:02:56.6]} 2. Nf3 {[%clk 0:02:56.7]}
2... Nc6 {[%clk 0:02:57.1]} 3. Bc4 {[%clk 0:02:57.1]} 3... Nf6 {[%clk
0:02:56.6]} 4. d3 {[%clk 0:02:56.8]} 4... h6 {[%clk 0:02:55.9]} 5. c3 {[%clk
0:02:54.2]} 5... d6 {[%clk 0:02:51.1]} 6. Bb3 {[%clk 0:02:51.5]} 6... Qe7 {[%clk
0:02:45.7]} 7. Nbd2 {[%clk 0:02:50.1]} 7... g6 {[%clk 0:02:43.4]} 8. Nc4 {[%clk
0:02:45.1]} 8... Bg7 {[%clk 0:02:42.1]} 9. Ne3 {[%clk 0:02:45.3]} 9... Be6
{[%clk 0:02:38.9]} 10. h4 {[%clk 0:02:39.4]} 10... Ng4 {[%clk 0:02:21.5]} 11. h5
{[%clk 0:02:36.3]} 11... Nxe3 {[%clk 0:02:18.8]} 12. Bxe3 {[%clk 0:02:35.8]}
12... O-O-O {[%clk 0:02:01.3]} 13. hxg6 {[%clk 0:02:32.1]} 13... fxg6 {[%clk
0:02:00.8]} 14. Nh4 {[%clk 0:02:32.1]} 14... Qf7 {[%clk 0:01:46.5]} 15. Qg4
{[%clk 0:02:14.9]} 15... Bxg4 {[%clk 0:01:38.2]} 16. Bxf7 {[%clk 0:02:15.8]}
16... g5 {[%clk 0:01:37.2]} 17. Ng6 {[%clk 0:01:55.9]} 17... Rh7 {[%clk
0:01:27.2]} 18. Bxg5 {[%clk 0:01:22.2]} 18... Rd7 {[%clk 0:00:22]} 19. Bg8
{[%clk 0:01:20.9]} 19... hxg5 {[%clk 0:00:17]} 20. Rxh7 {[%clk 0:01:18.4]} 20...
Bf6 {[%clk 0:00:15.3]} 21. f3 {[%clk 0:01:00.5]} 21... Rxh7 {[%clk 0:00:12.4]}
22. Bxh7 {[%clk 0:01:01.4]} 22... Be6 {[%clk 0:00:11.8]} 23. Nf8 {[%clk
0:00:59.2]} 23... Bf7 {[%clk 0:00:10]} 24. Ke2 {[%clk 0:00:51.9]} 24... Kd8
{[%clk 0:00:09]} 25. Bf5 {[%clk 0:00:41.5]} 25... Ke7 {[%clk 0:00:05.9]} 26. Nh7
{[%clk 0:00:35]} 26... Bg8 {[%clk 0:00:03.3]} 27. Rh1 {[%clk 0:00:34.7]} 27...
Nd8 {[%clk 0:00:02.9]} 28. Nxf6 {[%clk 0:00:30.1]} 28... Kxf6 {[%clk 0:00:03.8]}
29. Rh6+ {[%clk 0:00:30.4]} 29... Kg7 {[%clk 0:00:02.8]} 30. Rg6+ {[%clk
0:00:30.3]} 30... Kf7 {[%clk 0:00:03]} 31. Rxg5 {[%clk 0:00:30.4]} 31... Kf8
{[%clk 0:00:02.7]} 32. a3 {[%clk 0:00:29.9]} 32... Bf7 {[%clk 0:00:03.2]} 33.
Rg3 {[%clk 0:00:29.7]} 33... Ke7 {[%clk 0:00:03.5]} 34. Rh3 {[%clk 0:00:30]}
34... Kf6 {[%clk 0:00:03.7]} 35. g3 {[%clk 0:00:27.9]} 35... Kg7 {[%clk
0:00:03.4]} 36. f4 {[%clk 0:00:28.1]} 36... c6 {[%clk 0:00:03.3]} 37. Rh7+
{[%clk 0:00:26.8]} 37... Kg8 {[%clk 0:00:02.8]} 38. Kf3 {[%clk 0:00:27]} 38...
b5 {[%clk 0:00:02.3]} 39. g4 {[%clk 0:00:27.2]} 39... exf4 {[%clk 0:00:02.3]}
40. Kxf4 {[%clk 0:00:28.1]} 40... Be6 {[%clk 0:00:01.4]} 41. Rxa7 {[%clk
0:00:27.5]} 41... Bxf5 {[%clk 0:00:01.5]} 42. exf5 {[%clk 0:00:27.4]} 42... Nf7
{[%clk 0:00:01.4]} 43. g5 {[%clk 0:00:26.8]} 43... Ne5 {[%clk 0:00:01.7]} 44. g6
{[%clk 0:00:25.3]} 44... c5 {[%clk 0:00:01]} 45. Kg5 {[%clk 0:00:24.2]} 45...
Nxd3 {[%clk 0:00:01.9]} 46. f6 {[%clk 0:00:24.1]} 46... Kf8 {[%clk 0:00:01.3]}
47. Ra8# {[%clk 0:00:24.3]} 1-0